[Event "8th Brazilian Open SESC Caioba 2024"]
[Site "Caioba"]
[Date "2024.06.24"]
[Round "2.13"]
[White "Souza dos Santos, Matheus Garcett"]
[Black "Schnaider, Ilan"]
[Result "0-1"]
[ECO "B90"]
[WhiteElo "2014"]
[BlackElo "2395"]
[Annotator "RC"]
[PlyCount "84"]
[EventDate "2024.06.15"]
[EventCountry "BRA"]
[SourceTitle "playchess.com"]
[Source "ChessBase"]
[SourceQuality "1"]
[TimeControl "5400+30"]

1. e4 {[%emt 0:02:10]} c5 {[%emt 0:00:05]} 2. Nf3 {[%emt 0:00:19]} d6 {[%emt 0:00:03]} 3. d4 {[%emt 0:00:07]} cxd4 {[%emt 0:00:03]} 4. Nxd4 {[%emt 0:00:11]} Nf6 {[%emt 0:00:05]} 5. Nc3 {[%emt 0:00:04]} a6 {[%emt 0:00:03]} 6. Nb3 {[%emt 0:00:10]} e6 {[%emt 0:01:06]} 7. g4 {[%emt 0:00:21]} b5 {[%emt 0:00:32]} 8. Bg2 {[%emt 0:03:32]} Bb7 {[%emt 0:00:05]} 9. a3 {[%emt 0:01:08]} Nfd7 {[%emt 0:02:16]} 10. Be3 {[%emt 0:01:24]} Nc6 {[%emt 0:00:21]} 11. Qe2 {[%emt 0:01:45]} Rc8 {[%emt 0:01:43]} 12. f4 {[%emt 0:02:38]} Nb6 {[%emt 0:16:18]} 13. O-O-O {[%emt 0:02:37]} Qc7 {[%emt 0:03:56]} 14. Kb1 {[%emt 0:16:16]} Nc4 {[%emt 0:01:40]} 15. Bc1 {[%emt 0:00:41]} Be7 {[%emt 0:27:42]} 16. g5 {[%emt 0:03:32]} N6a5 {[%emt 0:00:41]} 17. Rd3 {[%emt 0:08:54]} Qb6 {[%emt 0:06:57]} 18. Na2 {[%emt 0:15:45]} Nc6 {[%emt 0:07:58]} 19. f5 {[%emt 0:12:03]} N6e5 {[%emt 0:09:37]} 20. Rg3 {[%emt 0:03:23]} exf5 {[%emt 0:08:52]} 21. exf5 {[%emt 0:00:21]} Bxg2 {[%emt 0:00:04]} 22. Rxg2 {[%emt 0:01:41]} Qb7 {[%emt 0:02:27]} 23. Rf1 {[%emt 0:00:35]} g6 {[%emt 0:03:06]} 24. f6 {[%emt 0:04:43]} Bd8 {[%emt 0:00:18]} 25. Bf4 {[%emt 0:02:16]} Bb6 {[%emt 0:00:33]} 26. Nb4 {[%emt 0:02:30]} a5 {[%emt 0:03:29]} 27. Bxe5 {[%emt 0:01:22]} dxe5 {[%emt 0:00:31]} 28. Nd3 {[%emt 0:01:17]} Ne3 {[%emt 0:02:08]} 29. Nxe5 {[%emt 0:08:38]} O-O {[%emt 0:00:54]} 30. Rg3 {[%emt 0:01:08]} Nxf1 {[%emt 0:00:31]} 31. Qxf1 {[%emt 0:00:06]} Bc7 {[%emt 0:01:16]} 32. Re3 {[%emt 0:03:06]} Rfe8 {[%emt 0:00:29]} 33. Qe2 {[%emt 0:01:23]} Bxe5 {[%emt 0:00:31]} 34. Rxe5 {[%emt 0:00:00]} Rxe5 {[%emt 0:00:10]} 35. Qxe5 {[%emt 0:00:02]} Qh1+ {[%emt 0:00:43]} 36. Ka2 {[%emt 0:00:39]} Qc6 {[%emt 0:00:13]} 37. Nxa5 {[%emt 0:00:40]} Qxc2 {[%emt 0:00:12]} 38. Qxb5 {[%emt 0:00:17]} Qf5 {[%emt 0:00:55]} 39. Qb7 {[%emt 0:00:59]} Rd8 {[%emt 0:00:27]} 40. Nc6 {[%emt 0:00:45]} Qe6+ {[%emt 0:00:04]} 41. Kb1 {[%emt 0:00:25]} Qe4+ {[%emt 0:00:22]} 42. Kc1 {[%emt 0:00:42]} Qc4+ {[%emt 0:02:04]} 0-1

[Event "8th Brazilian Open SESC Caioba 2024"]
[Site "Caioba"]
[Date "2024.06.24"]
[Round "2.14"]
[White "Perdomo, Leandro"]
[Black "Pontes, Israel Fillip da Sil"]
[Result "1/2-1/2"]
[ECO "D37"]
[WhiteElo "2391"]
[BlackElo "2019"]
[Annotator "RC"]
[PlyCount "68"]
[EventDate "2024.06.15"]
[EventCountry "BRA"]
[SourceTitle "playchess.com"]
[Source "ChessBase"]
[SourceQuality "1"]
[TimeControl "5400+30"]

1. d4 {[%emt 0:00:02]} d5 {[%emt 1:31:00]} 2. c4 {[%emt 0:00:03]} e6 {[%emt 0:00:00]} 3. Nc3 {[%emt 0:00:03]} a6 {[%emt 0:00:00]} 4. cxd5 {[%emt 0:00:18]} exd5 {[%emt 0:00:00]} 5. Nf3 {[%emt 0:01:16]} Nf6 {[%emt 0:00:00]} 6. Bg5 {[%emt 0:00:27]} Be6 {[%emt 0:00:00]} 7. e3 {[%emt 0:03:36]} Bd6 {[%emt 0:00:00]} 8. Bd3 {[%emt 0:02:48]} Nbd7 {[%emt 0:00:00]} 9. O-O {[%emt 0:04:33]} O-O {[%emt 0:00:00]} 10. h3 {[%emt 0:02:02]} Re8 {[%emt 0:00:00]} 11. Rc1 {[%emt 0:17:33]} c6 {[%emt 0:00:00]} 12. Bf4 {[%emt 0:01:33]} Qc7 {[%emt 0:00:00]} 13. Bxd6 {[%emt 0:16:23]} Qxd6 {[%emt 0:00:00]} 14. Qc2 {[%emt 0:01:14]} g6 {[%emt 0:00:00]} 15. Na4 {[%emt 0:09:07]} Ne4 {[%emt 0:00:00]} 16. Nc5 {[%emt 0:06:57]} Nexc5 {[%emt 0:00:00]} 17. dxc5 {[%emt 0:00:03]} Qe7 {[%emt 0:00:00]} 18. Qc3 {[%emt 0:11:29]} Qf6 {[%emt 0:00:00]} 19. Qxf6 {[%emt 0:06:13]} Nxf6 {[%emt 0:00:00]} 20. Nd4 {[%emt 0:00:04]} Kg7 {[%emt 0:00:00]} 21. b4 {[%emt 0:00:53]} Bd7 {[%emt 0:00:00]} 22. a4 {[%emt 0:00:30]} Rec8 {[%emt 0:00:00]} 23. Rc2 {[%emt 0:02:11]} Kf8 {[%emt 0:00:00]} 24. f3 {[%emt 0:00:52]} Re8 {[%emt 0:00:00]} 25. Kf2 {[%emt 0:00:06]} Re7 {[%emt 0:00:00]} 26. g4 {[%emt 0:03:38]} Ne8 {[%emt 0:01:58]} 27. Rc3 {[%emt 0:04:29]} Nc7 {[%emt 0:01:16]} 28. f4 {[%emt 0:02:05]} Ne6 {[%emt 0:01:18]} 29. Nf3 {[%emt 0:00:11]} Rae8 {[%emt 0:05:27]} 30. f5 {[%emt 0:00:01]} Nc7 {[%emt 0:01:45]} 31. Re1 {[%emt 0:02:34]} gxf5 {[%emt 0:01:16]} 32. gxf5 {[%emt 0:00:16]} Kg7 {[%emt 0:00:08]} 33. Nd4 {[%emt 0:02:04]} Kf6 {[%emt 0:00:02]} 34. Bb1 {[%emt 0:00:57]} Rg8 {[%emt 0:01:00]} 1/2-1/2